[Event "*** Titled Tuesday Blitz"]
[Site "Chess.com"]
[Date "2021.03.02"]
[Round "3"]
[White "MarcLonoff"]
[Black "PlotnikovPavel"]
[Result "0-1"]
[WhiteElo "2122"]
[BlackElo "2481"]
[TimeControl "180+1"]
[EndTime "10:26:39 PST"]
[Termination "PlotnikovPavel won by checkmate"]

1. c4 {[%clk 0:02:59.2]} 1... e6 {[%clk 0:02:59.8]} 2. e4 {[%clk 0:02:57.5]}
2... d5 {[%clk 0:02:57.6]} 3. exd5 {[%clk 0:02:56.9]} 3... exd5 {[%clk
0:02:57.4]} 4. cxd5 {[%clk 0:02:56.8]} 4... Nf6 {[%clk 0:02:56.7]} 5. Bb5+
{[%clk 0:02:56.2]} 5... Bd7 {[%clk 0:02:55.6]} 6. Bc4 {[%clk 0:02:55.7]} 6...
Be7 {[%clk 0:02:54.2]} 7. Nc3 {[%clk 0:02:55]} 7... O-O {[%clk 0:02:54.8]} 8.
Nf3 {[%clk 0:02:54.8]} 8... a6 {[%clk 0:02:53.6]} 9. O-O {[%clk 0:02:52.9]} 9...
b5 {[%clk 0:02:52.8]} 10. Bb3 {[%clk 0:02:52.8]} 10... Bg4 {[%clk 0:02:52.8]}
11. h3 {[%clk 0:02:48.6]} 11... Bh5 {[%clk 0:02:50.1]} 12. g4 {[%clk 0:02:46.7]}
12... Bg6 {[%clk 0:02:49.3]} 13. Ne5 {[%clk 0:02:46.8]} 13... b4 {[%clk
0:02:41.7]} 14. Nxg6 {[%clk 0:02:39]} 14... hxg6 {[%clk 0:02:39.8]} 15. Na4
{[%clk 0:02:22.3]} 15... Nxd5 {[%clk 0:02:39.2]} 16. Qf3 {[%clk 0:02:20.8]}
16... c6 {[%clk 0:02:37]} 17. d4 {[%clk 0:02:19.2]} 17... Bf6 {[%clk 0:02:35.9]}
18. Be3 {[%clk 0:02:14.6]} 18... Ra7 {[%clk 0:02:06.8]} 19. Rac1 {[%clk
0:02:12.9]} 19... Re7 {[%clk 0:01:50.9]} 20. Nc5 {[%clk 0:01:57.2]} 20... Rfe8
{[%clk 0:01:39.9]} 21. g5 {[%clk 0:01:49.5]} 21... Rxe3 {[%clk 0:01:34.3]} 22.
fxe3 {[%clk 0:01:47.4]} 22... Rxe3 {[%clk 0:01:34]} 23. Qf2 {[%clk 0:01:21.8]}
23... Bxd4 {[%clk 0:01:32.6]} 24. Qxf7+ {[%clk 0:01:20.5]} 24... Kh7 {[%clk
0:01:32.3]} 25. Kh2 {[%clk 0:00:40.7]} 25... Be5+ {[%clk 0:01:26.1]} 26. Kh1
{[%clk 0:00:38.9]} 26... Rxh3+ {[%clk 0:01:23.8]} 27. Kg2 {[%clk 0:00:39]} 27...
Rh2+ {[%clk 0:01:22.9]} 28. Kf3 {[%clk 0:00:38.5]} 28... Qxg5 {[%clk 0:01:20.7]}
29. Rh1 {[%clk 0:00:37.7]} 29... Qg2# {[%clk 0:01:18.4]} 0-1

[Event "*** Titled Tuesday Blitz"]
[Site "Chess.com"]
[Date "2021.03.02"]
[Round "3"]
[White "aa175"]
[Black "Smile2005"]
[Result "1-0"]
[WhiteElo "2546"]
[BlackElo "2353"]
[TimeControl "180+1"]
[EndTime "10:26:43 PST"]
[Termination "aa175 won by resignation"]

1. d4 {[%clk 0:03:00.9]} 1... Nf6 {[%clk 0:02:59.8]} 2. Bf4 {[%clk 0:03:00.3]}
2... g6 {[%clk 0:03:00]} 3. e3 {[%clk 0:03:00.9]} 3... Bg7 {[%clk 0:03:00.4]} 4.
Nf3 {[%clk 0:03:01.6]} 4... O-O {[%clk 0:03:00.8]} 5. Be2 {[%clk 0:03:02.3]}
5... d5 {[%clk 0:03:00.9]} 6. O-O {[%clk 0:03:02.9]} 6... c5 {[%clk 0:03:01.3]}
7. c3 {[%clk 0:03:02.8]} 7... Nc6 {[%clk 0:03:01.7]} 8. Nbd2 {[%clk 0:03:03]}
8... Nd7 {[%clk 0:03:01.5]} 9. Nb3 {[%clk 0:02:29.4]} 9... c4 {[%clk 0:02:52.8]}
10. Nbd2 {[%clk 0:02:26.8]} 10... e5 {[%clk 0:02:51.8]} 11. dxe5 {[%clk
0:02:26]} 11... Ndxe5 {[%clk 0:02:52.7]} 12. Nxe5 {[%clk 0:02:25]} 12... Nxe5
{[%clk 0:02:53.6]} 13. Nf3 {[%clk 0:02:21.8]} 13... Nc6 {[%clk 0:02:53.6]} 14.
Qa4 {[%clk 0:02:07]} 14... h6 {[%clk 0:02:51]} 15. Rfd1 {[%clk 0:02:05.6]} 15...
Be6 {[%clk 0:02:38.1]} 16. Bxc4 {[%clk 0:02:02.1]} 16... dxc4 {[%clk 0:02:38.1]}
17. Rxd8 {[%clk 0:02:02]} 17... Rfxd8 {[%clk 0:02:39]} 18. Nd4 {[%clk
0:02:00.1]} 18... Nxd4 {[%clk 0:02:36.6]} 19. cxd4 {[%clk 0:02:00.4]} 19... Bd5
{[%clk 0:02:35.9]} 20. f3 {[%clk 0:01:47.6]} 20... a6 {[%clk 0:02:33.4]} 21. Be5
{[%clk 0:01:18.9]} 21... b5 {[%clk 0:02:31.5]} 22. Qb4 {[%clk 0:01:15.1]} 22...
Bxe5 {[%clk 0:02:28.9]} 23. dxe5 {[%clk 0:01:16]} 23... Be6 {[%clk 0:02:28.5]}
24. e4 {[%clk 0:01:08.9]} 24... Rd3 {[%clk 0:02:26.2]} 25. Qa5 {[%clk
0:00:35.5]} 25... Kg7 {[%clk 0:02:25.5]} 26. h3 {[%clk 0:00:32.1]} 26... h5
{[%clk 0:02:24.9]} 27. Qb6 {[%clk 0:00:31.9]} 27... Rd2 {[%clk 0:02:24.3]} 28.
b4 {[%clk 0:00:22.8]} 28... c3 {[%clk 0:02:20.5]} 29. Rc1 {[%clk 0:00:17.1]}
29... Rc8 {[%clk 0:02:11.8]} 30. Qe3 {[%clk 0:00:15.1]} 30... Rxa2 {[%clk
0:01:58.9]} 31. Rxc3 {[%clk 0:00:15.4]} 31... Rd8 {[%clk 0:01:59.1]} 32. Qg5
{[%clk 0:00:09.2]} 32... Rc8 {[%clk 0:01:57.9]} 33. Qf6+ {[%clk 0:00:06.3]}
33... Kg8 {[%clk 0:01:58.2]} 34. Rxc8+ {[%clk 0:00:06.3]} 34... Bxc8 {[%clk
0:01:58.9]} 35. Qd8+ {[%clk 0:00:06.9]} 35... Kg7 {[%clk 0:01:59]} 36. Qxc8
{[%clk 0:00:07.8]} 36... Rb2 {[%clk 0:01:58.7]} 37. e6 {[%clk 0:00:06.8]} 37...
fxe6 {[%clk 0:01:58.4]} 38. Qc3+ {[%clk 0:00:06.7]} 1-0

[Event "*** Titled Tuesday Blitz"]
[Site "Chess.com"]
[Date "2021.03.02"]
[Round "3"]
[White "vugarrasulov"]
[Black "chessablanca"]
[Result "1-0"]
[WhiteElo "2794"]
[BlackElo "2598"]
[TimeControl "180+1"]
[EndTime "10:26:45 PST"]
[Termination "vugarrasulov won by resignation"]

1. e4 {[%clk 0:03:00.9]} 1... e5 {[%clk 0:02:59.9]} 2. Nf3 {[%clk 0:03:00.5]}
2... Nc6 {[%clk 0:02:59.7]} 3. Bc4 {[%clk 0:03:00.5]} 3... Bc5 {[%clk
0:02:59.5]} 4. O-O {[%clk 0:02:59.3]} 4... Nf6 {[%clk 0:02:59.7]} 5. c3 {[%clk
0:02:59]} 5... d6 {[%clk 0:03:00]} 6. d4 {[%clk 0:02:57.3]} 6... exd4 {[%clk
0:02:42.7]} 7. cxd4 {[%clk 0:02:58.2]} 7... Bb6 {[%clk 0:02:43.3]} 8. h3 {[%clk
0:02:53.1]} 8... h6 {[%clk 0:02:40.5]} 9. Nc3 {[%clk 0:02:48.2]} 9... O-O {[%clk
0:02:39.9]} 10. Re1 {[%clk 0:02:43.4]} 10... Re8 {[%clk 0:02:39.2]} 11. Bf4
{[%clk 0:02:43.5]} 11... Ne7 {[%clk 0:02:20.3]} 12. Bb3 {[%clk 0:02:34.9]} 12...
Ng6 {[%clk 0:02:19]} 13. Bh2 {[%clk 0:02:35.5]} 13... Be6 {[%clk 0:02:14.4]} 14.
Ba4 {[%clk 0:02:21.1]} 14... Rf8 {[%clk 0:02:01.7]} 15. Qc2 {[%clk 0:02:20.2]}
15... d5 {[%clk 0:01:51.6]} 16. e5 {[%clk 0:02:10.2]} 16... Nh7 {[%clk
0:01:51.3]} 17. Qd3 {[%clk 0:01:53.8]} 17... Ne7 {[%clk 0:01:44.4]} 18. Rad1
{[%clk 0:01:50.2]} 18... c6 {[%clk 0:01:32.8]} 19. Bc2 {[%clk 0:01:50]} 19... g6
{[%clk 0:01:30.4]} 20. Qd2 {[%clk 0:01:45.4]} 20... Kg7 {[%clk 0:01:25.2]} 21.
Ne2 {[%clk 0:01:45.8]} 21... Bf5 {[%clk 0:01:16.4]} 22. e6 {[%clk 0:01:41.8]}
22... fxe6 {[%clk 0:01:02.6]} 23. Bxf5 {[%clk 0:01:38.7]} 23... Nxf5 {[%clk
0:01:00.5]} 24. Nf4 {[%clk 0:01:39]} 24... Re8 {[%clk 0:00:54.8]} 25. Nxe6+
{[%clk 0:01:38.9]} 25... Rxe6 {[%clk 0:00:55.2]} 26. Rxe6 {[%clk 0:01:39.8]}
26... Nf8 {[%clk 0:00:55.5]} 27. Re2 {[%clk 0:01:35.7]} 27... Bc7 {[%clk
0:00:55.6]} 28. Bxc7 {[%clk 0:01:33.6]} 28... Qxc7 {[%clk 0:00:56.5]} 29. Rde1
{[%clk 0:01:34.1]} 29... Nd7 {[%clk 0:00:53.3]} 30. g4 {[%clk 0:01:30.3]} 30...
Nd6 {[%clk 0:00:52.1]} 31. Re7+ {[%clk 0:01:30.3]} 31... Nf7 {[%clk 0:00:52.6]}
32. Rxf7+ {[%clk 0:01:26.2]} 32... Kxf7 {[%clk 0:00:52.2]} 33. Qxh6 {[%clk
0:01:27.1]} 33... Nf8 {[%clk 0:00:48.9]} 34. Ne5+ {[%clk 0:01:24.1]} 34... Kf6
{[%clk 0:00:44.8]} 35. g5+ {[%clk 0:01:19.8]} 35... Kf5 {[%clk 0:00:44.2]} 36.
Qh4 {[%clk 0:01:20.2]} 1-0

[Event "*** Titled Tuesday Blitz"]
[Site "Chess.com"]
[Date "2021.03.02"]
[Round "3"]
[White "ulkaf961"]
[Black "TorFredrikKaasen"]
[Result "0-1"]
[WhiteElo "2359"]
[BlackElo "2730"]
[TimeControl "180+1"]
[EndTime "10:26:45 PST"]
[Termination "TorFredrikKaasen won by resignation"]

1. d4 {[%clk 0:02:55]} 1... Nf6 {[%clk 0:02:59.9]} 2. c4 {[%clk 0:02:53]} 2...
g6 {[%clk 0:03:00.1]} 3. Nc3 {[%clk 0:02:52.3]} 3... Bg7 {[%clk 0:03:00.8]} 4.
e4 {[%clk 0:02:52.1]} 4... d6 {[%clk 0:03:01.5]} 5. f4 {[%clk 0:02:51.4]} 5...
O-O {[%clk 0:03:00.8]} 6. Be2 {[%clk 0:02:50.6]} 6... c5 {[%clk 0:02:58.1]} 7.
d5 {[%clk 0:02:50.3]} 7... e6 {[%clk 0:02:58.3]} 8. Nf3 {[%clk 0:02:49.4]} 8...
exd5 {[%clk 0:02:58.6]} 9. cxd5 {[%clk 0:02:49.6]} 9... Nbd7 {[%clk 0:02:56.5]}
10. e5 {[%clk 0:02:04.9]} 10... dxe5 {[%clk 0:02:55.7]} 11. fxe5 {[%clk
0:02:04.9]} 11... Ng4 {[%clk 0:02:56.2]} 12. e6 {[%clk 0:01:56.2]} 12... Nde5
{[%clk 0:02:56.4]} 13. Ng5 {[%clk 0:01:23.9]} 13... fxe6 {[%clk 0:02:42.5]} 14.
Bxg4 {[%clk 0:01:20.6]} 14... Nxg4 {[%clk 0:02:42.6]} 15. Qxg4 {[%clk 0:01:12]}
15... exd5 {[%clk 0:02:42.9]} 16. Qh4 {[%clk 0:00:48.3]} 16... h6 {[%clk
0:02:36.1]} 17. Nf3 {[%clk 0:00:47.5]} 17... g5 {[%clk 0:01:57.9]} 18. Bxg5
{[%clk 0:00:39.9]} 18... hxg5 {[%clk 0:01:56.9]} 19. Nxg5 {[%clk 0:00:39.9]}
19... Qe8+ {[%clk 0:01:47.4]} 20. Kd2 {[%clk 0:00:14.7]} 20... Bf5 {[%clk
0:01:45.2]} 21. Rae1 {[%clk 0:00:11.1]} 21... Qg6 {[%clk 0:01:41.2]} 22. Nxd5
{[%clk 0:00:10.1]} 22... Rad8 {[%clk 0:01:36.8]} 23. Qc4 {[%clk 0:00:10.1]}
23... Qxg5+ {[%clk 0:01:35.2]} 0-1

[Event "*** Titled Tuesday Blitz"]
[Site "Chess.com"]
[Date "2021.03.02"]
[Round "3"]
[White "urutodo"]
[Black "gemarin"]
[Result "1-0"]
[WhiteElo "2305"]
[BlackElo "1898"]
[TimeControl "180+1"]
[EndTime "10:26:45 PST"]
[Termination "urutodo won by resignation"]

1. e4 {[%clk 0:03:00.9]} 1... c5 {[%clk 0:02:57.6]} 2. Nf3 {[%clk 0:03:00.8]}
2... d6 {[%clk 0:02:57.1]} 3. c3 {[%clk 0:03:00.7]} 3... Nf6 {[%clk 0:02:55.9]}
4. Bd3 {[%clk 0:03:00.6]} 4... g6 {[%clk 0:02:52.5]} 5. Bc2 {[%clk 0:03:00.5]}
5... Bg7 {[%clk 0:02:52.8]} 6. O-O {[%clk 0:03:00.6]} 6... O-O {[%clk
0:02:52.1]} 7. Re1 {[%clk 0:02:59.3]} 7... Nc6 {[%clk 0:02:50.7]} 8. h3 {[%clk
0:02:58.7]} 8... b6 {[%clk 0:02:47.4]} 9. d4 {[%clk 0:02:57]} 9... Bb7 {[%clk
0:02:44.6]} 10. Nbd2 {[%clk 0:02:53.5]} 10... Rc8 {[%clk 0:02:36.4]} 11. d5
{[%clk 0:02:53.1]} 11... Nb8 {[%clk 0:02:29.6]} 12. Nf1 {[%clk 0:02:46.4]} 12...
c4 {[%clk 0:02:23.2]} 13. Nd4 {[%clk 0:02:42.4]} 13... Nfd7 {[%clk 0:02:21.2]}
14. Bg5 {[%clk 0:02:36.4]} 14... h6 {[%clk 0:02:16.8]} 15. Be3 {[%clk
0:02:34.1]} 15... Kh7 {[%clk 0:02:11]} 16. h4 {[%clk 0:02:32.7]} 16... h5 {[%clk
0:02:04.7]} 17. Nh2 {[%clk 0:02:26.9]} 17... Nc5 {[%clk 0:02:02.2]} 18. Nhf3
{[%clk 0:02:24.3]} 18... f6 {[%clk 0:01:52.3]} 19. b4 {[%clk 0:02:14.1]} 19...
cxb3 {[%clk 0:01:50.4]} 20. axb3 {[%clk 0:02:15]} 20... Rh8 {[%clk 0:01:42.9]}
21. b4 {[%clk 0:02:02.9]} 21... Ncd7 {[%clk 0:01:41.5]} 22. Ne6 {[%clk
0:02:02.2]} 22... Qe8 {[%clk 0:01:40.6]} 23. Rxa7 {[%clk 0:01:55.6]} 23... Ba6
{[%clk 0:01:34.4]} 24. Bd3 {[%clk 0:01:51.8]} 24... Bxd3 {[%clk 0:01:30.2]} 25.
Qxd3 {[%clk 0:01:51.8]} 25... Rg8 {[%clk 0:01:07.3]} 26. Rea1 {[%clk 0:01:44.9]}
26... Nf8 {[%clk 0:00:51.3]} 27. Nfd4 {[%clk 0:01:40.8]} 27... Nfd7 {[%clk
0:00:47.6]} 28. f4 {[%clk 0:01:32.5]} 28... Bh6 {[%clk 0:00:45.6]} 29. Rb7
{[%clk 0:01:27.2]} 1-0

[Event "*** Titled Tuesday Blitz"]
[Site "Chess.com"]
[Date "2021.03.02"]
[Round "3"]
[White "ChessWarrior7197"]
[Black "PaulfromSPb"]
[Result "0-1"]
[WhiteElo "2913"]
[BlackElo "2695"]
[TimeControl "180+1"]
[EndTime "10:26:49 PST"]
[Termination "PaulfromSPb won by resignation"]

1. c4 {[%clk 0:03:00.9]} 1... e5 {[%clk 0:02:59.6]} 2. g3 {[%clk 0:03:00.8]}
2... Nc6 {[%clk 0:02:58.5]} 3. Bg2 {[%clk 0:03:00.7]} 3... f5 {[%clk 0:02:58.9]}
4. Nc3 {[%clk 0:02:58.4]} 4... Nf6 {[%clk 0:02:59]} 5. e3 {[%clk 0:02:52]} 5...
e4 {[%clk 0:02:53.3]} 6. d3 {[%clk 0:02:46.5]} 6... exd3 {[%clk 0:02:51]} 7. Nh3
{[%clk 0:02:45.5]} 7... Bb4 {[%clk 0:02:45.1]} 8. Bd2 {[%clk 0:02:43.5]} 8...
Ne5 {[%clk 0:02:38.1]} 9. Qb3 {[%clk 0:02:41.2]} 9... Ba5 {[%clk 0:02:32.1]} 10.
O-O {[%clk 0:02:40.9]} 10... c6 {[%clk 0:02:17]} 11. Qa3 {[%clk 0:02:33.5]}
11... Nxc4 {[%clk 0:02:12.5]} 12. Qc5 {[%clk 0:02:17.8]} 12... Nxd2 {[%clk
0:02:05.2]} 13. Qe5+ {[%clk 0:02:18.2]} 13... Qe7 {[%clk 0:01:56.4]} 14. Qxa5
{[%clk 0:02:17.2]} 14... Nxf1 {[%clk 0:01:56]} 15. Bxf1 {[%clk 0:02:18.1]} 15...
d5 {[%clk 0:01:51.7]} 16. Bxd3 {[%clk 0:02:17.6]} 16... O-O {[%clk 0:01:50.1]}
17. Nf4 {[%clk 0:02:17.3]} 17... Ne4 {[%clk 0:01:48.2]} 18. Nce2 {[%clk
0:02:15.6]} 18... g5 {[%clk 0:01:42.5]} 19. Ng2 {[%clk 0:02:13.1]} 19... b6
{[%clk 0:01:38.9]} 20. Qe1 {[%clk 0:02:07.5]} 20... Bd7 {[%clk 0:01:38.6]} 21.
Rd1 {[%clk 0:02:05.7]} 21... Rae8 {[%clk 0:01:37.8]} 22. Bb1 {[%clk 0:02:04.8]}
22... Qg7 {[%clk 0:01:32.2]} 23. b4 {[%clk 0:01:56.9]} 23... f4 {[%clk
0:01:24.7]} 24. f3 {[%clk 0:01:43.8]} 24... Bh3 {[%clk 0:01:11.5]} 25. fxe4
{[%clk 0:01:32.1]} 25... f3 {[%clk 0:01:08.2]} 26. Ngf4 {[%clk 0:01:32.5]} 26...
fxe2 {[%clk 0:01:02.2]} 27. Nxe2 {[%clk 0:01:31]} 27... Rf1+ {[%clk 0:01:01]}
28. Qxf1 {[%clk 0:01:31.2]} 28... Bxf1 {[%clk 0:01:01.9]} 29. Rxf1 {[%clk
0:01:31.7]} 29... Rf8 {[%clk 0:00:55]} 30. Nd4 {[%clk 0:01:08.3]} 30... Rxf1+
{[%clk 0:00:50.6]} 31. Kxf1 {[%clk 0:01:09.2]} 31... c5 {[%clk 0:00:47.8]} 32.
bxc5 {[%clk 0:01:09.1]} 32... bxc5 {[%clk 0:00:48.7]} 33. Nb3 {[%clk 0:01:09]}
33... Qb2 {[%clk 0:00:46.5]} 0-1

[Event "*** Titled Tuesday Blitz"]
[Site "Chess.com"]
[Date "2021.03.02"]
[Round "3"]
[White "Natalya_Buksa"]
[Black "FMalexhdez"]
[Result "1-0"]
[WhiteElo "2483"]
[BlackElo "2159"]
[TimeControl "180+1"]
[EndTime "10:26:49 PST"]
[Termination "Natalya_Buksa won on time"]

1. d4 {[%clk 0:03:00.9]} 1... Nf6 {[%clk 0:02:59.1]} 2. Nc3 {[%clk 0:03:00.5]}
2... d5 {[%clk 0:02:57.2]} 3. Bf4 {[%clk 0:03:00]} 3... c6 {[%clk 0:02:54.1]} 4.
e3 {[%clk 0:02:59.8]} 4... g6 {[%clk 0:02:54.5]} 5. h4 {[%clk 0:02:59.1]} 5...
h5 {[%clk 0:02:52.7]} 6. Nf3 {[%clk 0:02:58.9]} 6... Bg7 {[%clk 0:02:53]} 7. Ne5
{[%clk 0:02:57.3]} 7... Nbd7 {[%clk 0:02:51.1]} 8. Be2 {[%clk 0:02:57.6]} 8...
Nxe5 {[%clk 0:02:46.8]} 9. Bxe5 {[%clk 0:02:58.5]} 9... b5 {[%clk 0:02:18.8]}
10. f3 {[%clk 0:02:55]} 10... a5 {[%clk 0:02:09]} 11. g4 {[%clk 0:02:54.1]}
11... hxg4 {[%clk 0:02:02.8]} 12. fxg4 {[%clk 0:02:55]} 12... b4 {[%clk
0:01:51.7]} 13. Na4 {[%clk 0:02:53.1]} 13... Ba6 {[%clk 0:01:47.9]} 14. Bxa6
{[%clk 0:02:30.4]} 14... Rxa6 {[%clk 0:01:47.1]} 15. Qd3 {[%clk 0:02:15]} 15...
Ra7 {[%clk 0:01:45.4]} 16. O-O-O {[%clk 0:02:15]} 16... Qd7 {[%clk 0:01:32.9]}
17. Rdg1 {[%clk 0:02:02.2]} 17... Rh7 {[%clk 0:01:11.4]} 18. h5 {[%clk
0:01:58.8]} 18... Nxg4 {[%clk 0:00:29.9]} 19. hxg6 {[%clk 0:01:53]} 19... Rxh1
{[%clk 0:00:28.4]} 20. Rxh1 {[%clk 0:01:52.8]} 20... Nxe5 {[%clk 0:00:20.7]} 21.
dxe5 {[%clk 0:01:51.2]} 21... Qg4 {[%clk 0:00:17.5]} 22. gxf7+ {[%clk
0:01:47.3]} 22... Kxf7 {[%clk 0:00:16.9]} 23. Nc5 {[%clk 0:01:34.5]} 23... Ra8
{[%clk 0:00:14.3]} 24. e6+ {[%clk 0:01:31.6]} 24... Ke8 {[%clk 0:00:09.2]} 25.
Qh7 {[%clk 0:01:27.9]} 1-0

[Event "*** Titled Tuesday Blitz"]
[Site "Chess.com"]
[Date "2021.03.02"]
[Round "3"]
[White "igorcadilhac"]
[Black "Artem_Koval"]
[Result "1-0"]
[WhiteElo "2408"]
[BlackElo "2206"]
[TimeControl "180+1"]
[EndTime "10:26:49 PST"]
[Termination "igorcadilhac won on time"]

1. e4 {[%clk 0:03:00.9]} 1... c5 {[%clk 0:03:00.3]} 2. Nf3 {[%clk 0:03:01.1]}
2... d6 {[%clk 0:03:00.8]} 3. d4 {[%clk 0:03:01.7]} 3... cxd4 {[%clk 0:03:01.7]}
4. Nxd4 {[%clk 0:03:02.4]} 4... Nf6 {[%clk 0:03:02.1]} 5. Nc3 {[%clk 0:03:02.9]}
5... a6 {[%clk 0:03:02.5]} 6. Bc4 {[%clk 0:03:02.3]} 6... e6 {[%clk 0:03:02.4]}
7. Bb3 {[%clk 0:03:02.4]} 7... Be7 {[%clk 0:03:02.5]} 8. f4 {[%clk 0:03:02.4]}
8... O-O {[%clk 0:02:58.2]} 9. f5 {[%clk 0:03:02.7]} 9... e5 {[%clk 0:02:50.3]}
10. Nde2 {[%clk 0:03:01.8]} 10... b5 {[%clk 0:02:19.6]} 11. Bg5 {[%clk
0:03:01.8]} 11... Nbd7 {[%clk 0:02:16.4]} 12. Qd2 {[%clk 0:03:00.5]} 12... Bb7
{[%clk 0:02:14]} 13. Ng3 {[%clk 0:03:00.7]} 13... b4 {[%clk 0:02:05.3]} 14. Na4
{[%clk 0:02:51.2]} 14... Nxe4 {[%clk 0:02:00.4]} 15. Nxe4 {[%clk 0:02:51.3]}
15... Bxe4 {[%clk 0:02:01.2]} 16. Bxe7 {[%clk 0:02:50.8]} 16... Qxe7 {[%clk
0:02:01.8]} 17. O-O-O {[%clk 0:02:50.4]} 17... Nc5 {[%clk 0:01:40.9]} 18. Qxb4
{[%clk 0:02:46.4]} 18... Bxf5 {[%clk 0:01:31.1]} 19. Nc3 {[%clk 0:02:39.4]}
19... Be6 {[%clk 0:01:27.8]} 20. Nd5 {[%clk 0:02:37]} 20... Nxb3+ {[%clk
0:01:19.9]} 21. axb3 {[%clk 0:02:35.3]} 21... Qg5+ {[%clk 0:01:02.2]} 22. Kb1
{[%clk 0:02:34.3]} 22... Rad8 {[%clk 0:00:55.5]} 23. h4 {[%clk 0:02:18.4]} 23...
Qg4 {[%clk 0:00:41.5]} 24. Qb7 {[%clk 0:02:11.3]} 24... a5 {[%clk 0:00:31.6]}
25. h5 {[%clk 0:02:07.9]} 25... h6 {[%clk 0:00:31.3]} 26. Rd3 {[%clk 0:01:54]}
26... a4 {[%clk 0:00:25.5]} 27. Rhd1 {[%clk 0:01:38.8]} 27... axb3 {[%clk
0:00:24.3]} 28. Qxb3 {[%clk 0:01:38.8]} 1-0

[Event "*** Titled Tuesday Blitz"]
[Site "Chess.com"]
[Date "2021.03.02"]
[Round "3"]
[White "DonPreuss"]
[Black "Moon_stone123"]
[Result "1-0"]
[WhiteElo "2300"]
[BlackElo "2509"]
[TimeControl "180+1"]
[EndTime "10:26:53 PST"]
[Termination "DonPreuss won by resignation"]

1. d4 {[%clk 0:02:56.8]} 1... Nf6 {[%clk 0:02:59.9]} 2. Nc3 {[%clk 0:02:56.3]}
2... g6 {[%clk 0:03:00.2]} 3. e4 {[%clk 0:02:56.3]} 3... d6 {[%clk 0:03:00.5]}
4. f4 {[%clk 0:02:56.2]} 4... c6 {[%clk 0:02:58.9]} 5. Nf3 {[%clk 0:02:55.4]}
5... d5 {[%clk 0:02:53.4]} 6. e5 {[%clk 0:02:55]} 6... Ne4 {[%clk 0:02:53.8]} 7.
Bd3 {[%clk 0:02:47.7]} 7... Nxc3 {[%clk 0:02:46]} 8. bxc3 {[%clk 0:02:47.1]}
8... Bg4 {[%clk 0:02:46.6]} 9. O-O {[%clk 0:02:44.9]} 9... e6 {[%clk 0:02:46.5]}
10. h3 {[%clk 0:02:36.6]} 10... Bxf3 {[%clk 0:02:46.3]} 11. Qxf3 {[%clk
0:02:36.1]} 11... h5 {[%clk 0:02:46.7]} 12. a4 {[%clk 0:02:19.6]} 12... Nd7
{[%clk 0:02:30]} 13. Ba3 {[%clk 0:01:45.7]} 13... Bxa3 {[%clk 0:02:29.4]} 14.
Rxa3 {[%clk 0:01:44.9]} 14... Qe7 {[%clk 0:02:29.9]} 15. Raa1 {[%clk 0:01:44.1]}
15... h4 {[%clk 0:02:25.3]} 16. c4 {[%clk 0:01:41.5]} 16... dxc4 {[%clk
0:02:22.6]} 17. Bxc4 {[%clk 0:01:41.7]} 17... Kf8 {[%clk 0:02:07.4]} 18. Bd3
{[%clk 0:01:38]} 18... Kg7 {[%clk 0:02:07.1]} 19. c4 {[%clk 0:01:31.6]} 19...
Rhd8 {[%clk 0:01:52.6]} 20. Qg4 {[%clk 0:01:30.3]} 20... Kh8 {[%clk 0:01:22.8]}
21. Be4 {[%clk 0:01:24.3]} 21... Nb6 {[%clk 0:01:17.4]} 22. f5 {[%clk
0:01:14.9]} 22... exf5 {[%clk 0:01:02.3]} 23. Bxf5 {[%clk 0:01:14.5]} 23... Rg8
{[%clk 0:00:27.9]} 24. Bd3 {[%clk 0:01:14.2]} 24... Rad8 {[%clk 0:00:23.9]} 25.
Rf6 {[%clk 0:01:13.3]} 25... Nd7 {[%clk 0:00:21.7]} 26. Qxh4+ {[%clk 0:01:12.5]}
26... Kg7 {[%clk 0:00:21.2]} 27. Rxg6+ {[%clk 0:01:11.3]} 27... Kf8 {[%clk
0:00:21.5]} 28. Rxg8+ {[%clk 0:01:11.2]} 28... Kxg8 {[%clk 0:00:21.1]} 29. Qxe7
{[%clk 0:01:11.7]} 1-0

[Event "*** Titled Tuesday Blitz"]
[Site "Chess.com"]
[Date "2021.03.02"]
[Round "3"]
[White "ChessQueen"]
[Black "Vamostodorecto"]
[Result "1-0"]
[WhiteElo "2729"]
[BlackElo "2436"]
[TimeControl "180+1"]
[EndTime "10:26:54 PST"]
[Termination "ChessQueen won on time"]

1. e4 {[%clk 0:03:00.9]} 1... e5 {[%clk 0:02:51.8]} 2. d4 {[%clk 0:02:58.3]}
2... exd4 {[%clk 0:02:51.2]} 3. c3 {[%clk 0:02:58.2]} 3... d3 {[%clk 0:02:45.7]}
4. Bxd3 {[%clk 0:02:57.4]} 4... Nc6 {[%clk 0:02:46.6]} 5. Nf3 {[%clk 0:02:57.4]}
5... d6 {[%clk 0:02:34.7]} 6. O-O {[%clk 0:02:55.9]} 6... Nf6 {[%clk 0:02:35.1]}
7. Re1 {[%clk 0:02:53.8]} 7... Be7 {[%clk 0:02:34.4]} 8. Nbd2 {[%clk 0:02:52.5]}
8... O-O {[%clk 0:02:31.1]} 9. h3 {[%clk 0:02:52]} 9... h6 {[%clk 0:02:27.3]}
10. Nf1 {[%clk 0:02:51.2]} 10... Ne5 {[%clk 0:02:20.8]} 11. Bc2 {[%clk
0:02:50.6]} 11... Re8 {[%clk 0:02:19.4]} 12. Ng3 {[%clk 0:02:50.5]} 12... Bf8
{[%clk 0:02:18.5]} 13. Nd4 {[%clk 0:02:48]} 13... g6 {[%clk 0:02:15.2]} 14. f4
{[%clk 0:02:44.6]} 14... Nc6 {[%clk 0:02:14.7]} 15. Qf3 {[%clk 0:02:40.5]} 15...
Bg7 {[%clk 0:02:11.9]} 16. Be3 {[%clk 0:02:39.8]} 16... Bd7 {[%clk 0:01:52.9]}
17. Rad1 {[%clk 0:02:38.4]} 17... Qe7 {[%clk 0:01:40.5]} 18. Bf2 {[%clk
0:02:35.4]} 18... Qf8 {[%clk 0:01:35.8]} 19. Bb3 {[%clk 0:02:32]} 19... a5
{[%clk 0:01:28.8]} 20. Nb5 {[%clk 0:02:29]} 20... a4 {[%clk 0:01:24.3]} 21. Bc2
{[%clk 0:02:27.7]} 21... Rec8 {[%clk 0:01:15.9]} 22. e5 {[%clk 0:02:26.5]} 22...
dxe5 {[%clk 0:01:16.8]} 23. fxe5 {[%clk 0:02:26.6]} 23... Nd5 {[%clk 0:00:25.6]}
24. Qxd5 {[%clk 0:02:21.7]} 24... Be6 {[%clk 0:00:24.9]} 25. Qe4 {[%clk
0:02:12]} 25... Nxe5 {[%clk 0:00:23.5]} 26. Bd4 {[%clk 0:02:03.4]} 26... Nc6
{[%clk 0:00:03.9]} 27. Bxg7 {[%clk 0:02:00.7]} 27... Kxg7 {[%clk 0:00:04.8]} 28.
Nd4 {[%clk 0:01:59.2]} 28... Nxd4 {[%clk 0:00:04.1]} 29. Qxd4+ {[%clk
0:01:59.1]} 29... Kh7 {[%clk 0:00:04.3]} 30. Ne4 {[%clk 0:01:58.4]} 30... Qg7
{[%clk 0:00:03.5]} 31. Nf6+ {[%clk 0:01:57.7]} 31... Kh8 {[%clk 0:00:03.7]} 32.
Nd5 {[%clk 0:01:50.4]} 32... Qxd4+ {[%clk 0:00:01.4]} 33. Rxd4 {[%clk
0:01:50.3]} 33... Kg7 {[%clk 0:00:02.3]} 34. Nf4 {[%clk 0:01:49.1]} 1-0